Cogmind - Beta 10.2 @@@ ROGUE MODE // 2021.05.21 @ 22:02:10 Player: sentrybuster Result: Self-destructed Performance ------------- Evolutions (0) 0 Regions Visited (4) 800 Robots Destroyed (17) 85 Value Destroyed (299) 299 Prototype IDs (0) 0 Alien Tech Used (0) 0 Bonus (0) 0 TOTAL SCORE: 1184 Bonus ------- None Cogmind --------- Core Integrity 23/250 Matter 300/300 Energy 100/100 System Corruption 0% Temperature Cool (0) Movement Walking (120) Location -9/Mines Parts ------- > --- POWER (1) -------- (None) > --- PROPULSION (2) --- Aluminum Leg Aluminum Leg > --- UTILITY (2) ------ Improved Heat Sink Large Storage Unit > --- WEAPON (2) ------- Hammer > --- INVENTORY (10) --- Light Treads Light Treads Large Matter Pod (71) High-capacity Matter Pod (2) Bomb Drone Bay Peak State ------------ > --- POWER ------------ Light Ion Engine > --- PROPULSION ------- Aluminum Leg Aluminum Leg > --- UTILITY ---------- Improved Heat Sink Large Storage Unit > --- WEAPON ----------- Spread Laser Light Assault Rifle > --- INVENTORY -------- Light Treads Light Treads Large Matter Pod High-capacity Matter Pod Bomb Drone Bay Hammer [Rating: 11] Favorites ----------- Power Light Ion Engine Engine Light Ion Engine Propulsion Aluminum Leg Leg Aluminum Leg Utility Large Storage Unit Device Improved Heat Sink Storage Large Storage Unit Weapon Assault Rifle Energy Gun Spread Laser Ballistic Gun Assault Rifle Impact Weapon Hammer Build | -11 -10 -10 -10 -9 ------- Run | Scr Mat Min Exi Min Slots Evolved . | . . . . . Power . | . . . . . Propulsion . | . . . . . Utility . | . . . . . Weapon . | . . . . . Parts Attached 16 | 5 3 . . 8 Power 2 | 1 . . . 1 Engine 2 | 1 . . . 1 Core . | . . . . . Reactor . | . . . . . Propulsion 4 | 2 . . . 2 Treads . | . . . . . Leg 4 | 2 . . . 2 Wheel . | . . . . . Hover . | . . . . . Flight . | . . . . . Utility 4 | 1 1 . . 2 Device 1 | . . . . 1 Storage 3 | 1 1 . . 1 Processor . | . . . . . Hackware . | . . . . . Protection . | . . . . . Artifact . | . . . . . Weapon 6 | 1 2 . . 3 Energy Gun 1 | . . . . 1 Energy Cannon . | . . . . . Ballistic Gun 4 | 1 2 . . 1 Ballistic Cannon . | . . . . . Launcher . | . . . . . Special Weapon . | . . . . . Impact Weapon 1 | . . . . 1 Slashing Weapon . | . . . . . Piercing Weapon . | . . . . . Special Melee Weapon . | . . . . . Unidentified Prototypes . | . . . . . Parts Lost 8 | . . . . 8 Power 2 | . . . . 2 Propulsion 2 | . . . . 2 Utility . | . . . . . Weapon 4 | . . . . 4 Highest Loss Streak 5 | . . . . 5 Average Slot Usage (%) 79 | . 77 85 85 71 Engine 11 | . 14 14 14 6 Leg 26 | . 28 28 28 22 Device 2 | . . . . 9 Storage 14 | . 14 14 14 14 Ballistic Gun 21 | . 20 28 28 12 Impact Weapon 1 | . . . . 5 Naked Turns . | . . . . . Heaviest Build 24 | 8 23 23 23 24 Greatest Support 20 | 20 20 20 20 20 Greatest Overweight (x) 6 | . 1 1 1 6 Average Overweight (x) . | . . 1 1 . Largest Inventory Capacity 12 | 6 12 10 10 10 Average Capacity 9 | 4 9 10 10 10 Most Carried 10 | 5 9 10 10 10 Average Carried 7 | 2 6 8 10 7 Final Capacity 10 | 6 10 10 10 10 Final Carried 10 | 5 8 10 10 6 Class Distribution -------------------- 100% | Mutant Dominant Class ---------------- Mutant | -10/Materials Mutant | -10/Mines Mutant | -10/Exiles Mutant | -9/Mines Resources | -11 -10 -10 -10 -9 ----------- Run | Scr Mat Min Exi Min Matter Collected 588 | 250 . 27 . 311 Remotely . | . . . . . Salvage Created 481 | . 51 42 . 388 Parts 28 | . 7 6 . 15 Haulers Intercepted . | . . . . . Recyclers Shooed 2 | . 1 . . 1 Parts Field Recycled . | . . . . . Retrieved Matter . | . . . . . Parts Self-Destructed . | . . . . . Prevented . | . . . . . Kills | -11 -10 -10 -10 -9 ------- Run | Scr Mat Min Exi Min Combat Hostiles Destroyed 14 | . 3 3 . 8 Melee 1 | . . . . 1 Guns 13 | . 3 3 . 7 Classes Destroyed 4 | . 1 . . 3 Worker 1 | . . . . 1 Recycler 2 | . . . . 2 Swarmer 9 | . 3 3 . 3 Grunt 5 | . . . . 5 Best Kill Streak 5 | . 3 3 . 5 Combat Bots Only 5 | . 3 3 . 5 Max Kills in Single Turn 1 | . 1 1 . 1 Gunslinging . | . . . . . Exploded . | . . . . . Melee 1 | . . . . 1 Uniques/NPCs Destroyed . | . . . . . Combat | -11 -10 -10 -10 -9 -------- Run | Scr Mat Min Exi Min Damage Taken 1003 | . 94 25 . 884 Core 227 | . 9 16 . 202 Absorbed by Shields . | . . . . . Core Remaining (%) 100 | 100 . . . . Volleys Fired 46 | . 12 3 . 31 Largest 2 | . 2 2 . 2 Hottest 85 | . 40 40 . 85 Shots Fired 82 | . 24 6 . 52 Gun 82 | . 24 6 . 52 Cannon . | . . . . . Launcher . | . . . . . Special . | . . . . . Kinetic 75 | . 24 6 . 45 Thermal 7 | . . . . 7 Explosive . | . . . . . Electromagnetic . | . . . . . Robot Hit Streak 9 | . 5 3 . 9 Robot Miss Streak 5 | . 4 1 . 5 Penetration Max . | . . . . . Secondary Targets 1 | . . . . 1 Max Gunslinging Chain 1 | . . . . 1 Shots Hit Robots 56 | . 12 2 . 42 Core Hits 27 | . 3 3 . 21 Critical Hits . | . . . . . Critical Kills . | . . . . . Critical Parts Destroyed . | . . . . . Melee Attacks 5 | . . . . 5 Impact 5 | . . . . 5 Slashing . | . . . . . Piercing . | . . . . . Sneak Attacks 1 | . . . . 1 Combat Hostiles . | . . . . . Follow-up Attacks . | . . . . . Damage Inflicted 654 | . 127 35 . 492 Guns 557 | . 127 35 . 395 Cannons . | . . . . . Explosions . | . . . . . Melee 97 | . . . . 97 Ramming . | . . . . . Kinetic 514 | . 127 35 . 352 Thermal 43 | . . . . 43 Explosive . | . . . . . Electromagnetic . | . . . . . Impact 97 | . . . . 97 Slashing . | . . . . . Piercing . | . . . . . Highest Corruption . | . . . . . Average Corruption . | . . . . . Corruption Purged . | . . . . . Overload Shots . | . . . . . Overflow Damage 1 | . . . . 1 Projectiles . | . . . . . Explosions . | . . . . . Melee 1 | . . . . 1 Knockbacks . | . . . . . Impact . | . . . . . Kinetic . | . . . . . Secondary . | . . . . . Self-Inflicted Damage . | . . . . . Shots . | . . . . . Rammed . | . . . . . Targets Rammed . | . . . . . Kicked . | . . . . . Crushed . | . . . . . Highest Temperature 50 | . . . . 50 Average Temperature 15 | . . . . 15 Received Heat Transfer 425 | . . . . 425 Siege Activations . | . . . . . Robots Corrupted . | . . . . . Combat Hostiles . | . . . . . Parts Fried . | . . . . . Impact Corruptions 1 | . . . . 1 Robots Melted . | . . . . . Combat Hostiles . | . . . . . Parts Melted . | . . . . . Heat Transferred 55 | . . . . 55 Parts Sabotaged . | . . . . . Parts Stolen . | . . . . . Parts Stripped . | . . . . . Power Chain Reactions . | . . . . . Missiles Intercepted . | . . . . . Alert | -11 -10 -10 -10 -9 ------- Run | Scr Mat Min Exi Min Peak Influence 130 | . 122 117 . 130 Initial 47 | . . 47 . . Average 55 | . 41 71 . 59 Maximum Alert Level . | . . . . . Low Security (%) 100 | 100 100 100 . 100 Level 1 . | . . . . . Level 2 . | . . . . . Level 3 . | . . . . . Level 4 . | . . . . . Level 5 . | . . . . . High Security . | . . . . . Max Security . | . . . . . Squads Dispatched 1 | . 1 . . . Investigation . | . . . . . Extermination . | . . . . . Reinforcement 1 | . 1 . . . Assault . | . . . . . Garrison . | . . . . . Intercept . | . . . . . Construction Impeded . | . . . . . Haulers Reinforced . | . . . . . Stealth | -11 -10 -10 -10 -9 --------- Run | Scr Mat Min Exi Min Distress Signals . | . . . . . Communications Jammed . | . . . . . Distress Signals . | . . . . . Times Spotted 18 | . 5 3 . 10 Peak Tracking Total 5 | . 5 3 . 4 Tactical Retreats . | . . . . . Traps | -11 -10 -10 -10 -9 ------- Run | Scr Mat Min Exi Min Traps Triggered . | . . . . . Indirectly . | . . . . . Trap Hack Attempts . | . . . . . Triggered . | . . . . . Disarmed . | . . . . . Reprogrammed . | . . . . . Reused . | . . . . . Traps Extracted . | . . . . . Installed . | . . . . . Triggered . | . . . . . Machines | -11 -10 -10 -10 -9 ---------- Run | Scr Mat Min Exi Min Machines Disabled . | . . . . . Max in Single Turn . | . . . . . Machines Sabotaged . | . . . . . Garrisons Compromised . | . . . . . Overloaded Fab Kills . | . . . . . Fab Network Shutdowns . | . . . . . Hacking | -11 -10 -10 -10 -9 --------- Run | Scr Mat Min Exi Min Machines Accessed 3 | . 2 1 . . Terminals 2 | . 2 . . . Fabricators . | . . . . . Repair Stations . | . . . . . Recycling Units . | . . . . . Scanalyzers . | . . . . . Garrison Access . | . . . . . Total Hacks 11 | . 10 1 . . Successful 8 | . 7 1 . . Failed 3 | . 3 . . . Catastrophic . | . . . . . Database Lockouts . | . . . . . Manual 10 | . 10 . . . Terminals 10 | . 10 . . . Fabricators . | . . . . . Repair Stations . | . . . . . Recycling Units . | . . . . . Scanalyzers . | . . . . . Garrison Access . | . . . . . Terminal Hacks 3 | . 2 1 . . Open Door 1 | . . 1 . . Locate Traps 1 | . 1 . . . Zone Layout 1 | . 1 . . . Fabricator Hacks . | . . . . . Repair Station Hacks . | . . . . . Recycling Unit Hacks . | . . . . . Scanalyzer . | . . . . . Garrison Access Hacks . | . . . . . Unauthorized Hacks 5 | . 5 . . . Terminals 5 | . 5 . . . Track 2 | . 2 . . . Botnet 2 | . 2 . . . Operators 1 | . 1 . . . Fabricators . | . . . . . Repair Stations . | . . . . . Recycling Units . | . . . . . Scanalyzers . | . . . . . Garrison Access . | . . . . . Data Cores Recovered . | . . . . . Used . | . . . . . Hacking Detections 2 | . 2 . . . Full Trace Events . | . . . . . Feedback Events . | . . . . . Feedback Blocked . | . . . . . Robot Schematics Acquired . | . . . . . Robots Built . | . . . . . Matter . | . . . . . Time . | . . . . . Total Robot Build Rating . | . . . . . Part Schematics Acquired . | . . . . . Parts Built . | . . . . . Matter . | . . . . . Time . | . . . . . Total Part Build Rating . | . . . . . Parts Repaired . | . . . . . Time . | . . . . . Parts Recycled . | . . . . . Recycled Matter . | . . . . . Retrieved Matter . | . . . . . Retrieved Components . | . . . . . Parts Scanalyzed . | . . . . . Part Schematics Acquired . | . . . . . Parts Damaged . | . . . . . Bothacking | -11 -10 -10 -10 -9 ------------ Run | Scr Mat Min Exi Min Used RIF Installer . | . . . . . Robots Hacked . | . . . . . Non-combat . | . . . . . Combat . | . . . . . Robot Hacks Applied . | . . . . . Relay Couplers Released . | . . . . . Robots Rewired . | . . . . . Allies Hacked . | . . . . . Hacks Repelled . | . . . . . Allies | -11 -10 -10 -10 -9 -------- Run | Scr Mat Min Exi Min Total Allies 3 | . . . . 3 Largest Group 3 | . . . . 3 Highest-Rated Group 40 | . . . . 40 Highest-Rated Ally 16 | . . . . 16 Total Orders . | . . . . . Ally Attacks . | . . . . . Total Damage . | . . . . . Kills . | . . . . . Allies Corrupted . | . . . . . Allies Melted . | . . . . . Intel | -11 -10 -10 -10 -9 ------- Run | Scr Mat Min Exi Min Robot Analysis Total . | . . . . . Derelict Logs Recovered . | . . . . . Drone Launches . | . . . . . Drone Recoveries . | . . . . . Exploration | -11 -10 -10 -10 -9 ------------- Run | Scr Mat Min Exi Min Turns Passed 1168 | 71 221 321 200 355 Spaces Moved 682 | 52 133 208 134 155 Core 7 | 5 . . . 2 Treads . | . . . . . Legs 675 | 47 133 208 134 153 Wheels . | . . . . . Hover . | . . . . . Flight . | . . . . . Fastest Speed 50 | 50 120 150 150 120 Average Speed 140 | 113 130 150 150 137 Slowest Speed 350 | 120 150 150 150 350 Overloaded Moves . | . . . . . Propulsion Burnouts . | . . . . . Robots Hopped . | . . . . . Cave-ins Triggered . | . . . . . Exploration Rate (%) 36 | 4 35 61 51 31 Regions Visited 4 Branch Regions 3 Pre-discovered Areas . | . . . . . Known Exits Taken . | . . . . . Unknown Exits Taken 4 | 1 1 1 1 . Scrap Searched 1 | . . . . 1 Spaces Dug . | . . . . . Terrain Destroyed . | . . . . . Melee . | . . . . . Projectile . | . . . . . AOE . | . . . . . Terrain Rammed . | . . . . . Walls Destroyed . | . . . . . Machines Disabled . | . . . . . Actions | -11 -10 -10 -10 -9 --------- Run | Scr Mat Min Exi Min Total 802 | 61 157 211 133 240 Wait 41 | . 3 . . 38 Move 678 | 51 132 207 133 155 Hop . | . . . . . Pick Up 11 | 5 4 1 . 1 Fast Attach 9 | 5 1 . . 3 Attach 7 | . 2 . . 5 Detach 3 | . 2 . . 1 Swap . | . . . . . Drop 2 | . 1 . . 1 Fire 46 | . 12 3 . 31 Melee 5 | . . . . 5 Ram . | . . . . . Kick . | . . . . . Crush . | . . . . . Escape Stasis . | . . . . . Rewire . | . . . . . Trap . | . . . . . Miscellaneous . | . . . . . Route ------- -11/Scrapyard -10/Materials -10/Mines (discovered 2 exits: [*Mat] / [*Exi]) -10/Exiles (discovered 2 exits: [*Min x2]) -9/Mines History --------- Turn | Location | Event 2 | -11/Scrapyard | Met Revision 17 2 | -11/Scrapyard | Discovered new exit (range 16) 72 | -11/Scrapyard | Entered Materials 272 | -10/Materials | Discovered new exit (range 14) 293 | -10/Materials | Entered Mines 318 | -10/Mines | Build established: Mutant 493 | -10/Mines | Discovered new exit (range 6) 528 | -10/Mines | Found the Drone Emporium 535 | -10/Mines | Found Prototype Device 608 | -10/Mines | Deemed a non-threat by the Exiles lab entrance 608 | -10/Mines | Discovered new exit (range 5) 614 | -10/Mines | Entered Exiles 637 | -10/Exiles | Discovered new exit (range 15) 655 | -10/Exiles | Met 8R-AWN 677 | -10/Exiles | Met EX-HEX 746 | -10/Exiles | Met EX-DEC 802 | -10/Exiles | Discovered new exit (range 10) 814 | -10/Exiles | Entered Mines 907 | -9/Mines | Core integrity fell below 50% 943 | -9/Mines | Lost 5 parts (1p2n2w) 1001 | -9/Mines | Core integrity fell below 20% 1067 | -9/Mines | Lost 3 parts (1p2w) 1078 | -9/Mines | Assisted by bots powering up and referring to "LRC-V3" 1167 | -9/Mines | Excavation squad dispatched 1167 | -9/Mines | A large section of the Mines collapsed 1169 | -9/Mines | Self-destructed Last Messages --------------- 01048_ Acquired 15 matter. 01048_ R-06 Scavenger collects Lgt. Ion Engine. 01051_ S-10 Pest destroyed. 01054_ Acquired 17 matter. 01078_ Trooper 2a: "Hello LRC-V3. What is your command?" 01078_ Mercenary 2a: "Hello LRC-V3. What is your command?" 01078_ Trooper 2b: "Hello LRC-V3. What is your command?" 01164_ Sneak attack on R-06 Scavenger. 01164_ R-06 Scavenger destroyed. 01167_ Flight Unit crushed. 01167_ Lgt. Ion Engine crushed. 01167_ Tractor Beam crushed. 01167_ Lgt. Ion Engine crushed. 01167_ 18 Matter crushed. 01167_ Sml. Laser crushed. 01167_ Ion Engine crushed. 01167_ Trooper 2b crushed by falling debris. 01167_ Sml. Storage Unit crushed. 01167_ ALERT: Suspicious cave-in, suspected derelict activity in mines. Dispatching escorted excavation squad. Map ----- +----------------------------------------------------+ | | | | | ????????????????????????????????????????? | | ????????????????????????????????????????? | | ????????????????????????????????????????? | | ????????????????????????????????????##### | | ????????????????????????????????##### | | ????????????????????????????????# | | ????????????????????????????????# | | ????????????????????????????????# | | ????????????????????????????????##### | | ?????????????????????????####???????#### | | ????????????????????????## ##?????????# | | ???????????????????????## #?????????# | | ?????????????????????### #?????????## | | ????????????????????## #??????????? | | ????????????????????# #????????### | | ????????????????????# ##????????# | | ????????????????????# ######?????# | | ????????????????????# ### ##????## | | ????????????####???## ! ## ##????## | | ???????????## #### ####### | | ??????????## ## | | ??????????# ###### = | | ??????????# ##????## | | ??????????# @gg ##??????# %% | | ??????????# # ##???????# ## ! | | ??????????# a##!g*##???????# #### | | ?????????# ## ##%##???????# ##??#! | | ????????# *##????????# ##???## | | ??????# #????????## ##?????## | | ?????# ##?????????###????????? | | ?????# ## #?????????????????????? | | ?????### ??# ### #?????????????????????? | | ???????#???# ??# #?????????????????????? | | ???????????#??? ! ?????????????????????? | | ???????????????# [?????????????????????? | | ???????????????# ?????????????????????? | | ??????????????? *?????????????????????? | | ??????????????? ?????????????????????? | | ???????????????####?????????????????????? | | ????????????????????????????????????????? | | ????????????????????????????????????????? | | ????????????????????????????????????????? | | ????????????????????????????????????????? | | ????????????????????????????????????????? | | ????????????????????????????????????????? | | ????????????????????????????????????????? | | ????????????????????????????????????????? | | ????????????????????????????????????????? | +----------------------------------------------------+ Best States ------------- Heat Dissipation 39 Energy Generation 10 Energy Capacity 125 Matter Stores 300 Matter Capacity 500 Sight Range 16 Terrain Scan Density 10 Evasion (%) 40 Item Schematics ----------------- None Robot Schematics ------------------ None Fabricated ------------ Nothing Alien Tech Used ----------------- None Achievements -------------- None Challenges ------------ None Game ------ Seed GhostRecoilNukerbomber Manual? 0 Play Time 00:07:38 Cumulative 230.5 hours Start 2021.05.21 @ 21:56:10 End 2021.05.21 @ 22:02:10 Sessions 1 Manual Loads 0 Difficulty Rogue Special Mode None Game No. 330 Rogue 326 Adventurer 0 Explorer 4 Win Type - Total 3 Types 3/0/0/0/0/0/0/0/0 Lore% 74 Gallery% 85 Achievement% 59 Wizard Run 0 Options --------- ASCII 1 Keyboard 1 Movement Numpad Keybinds 0 Fullscreen 2 Font 18/X11 Map View 76x50 Tactical HUD 1 Map Filters NONE Filters NONE Steam 1 RUN: b2528141-74a9-4a3b-a872-b83aac1876eb